fUSD/lending_fUSD_20260526
["ID","MTS","AMOUNT","RATE_DAILY","PERIOD"]
[423031003,1779780653000,-718.96517046,0.00019322,2]
[423031004,1779780653000,-157.33151,0.00019323,2]
[423031011,1779780653000,-151.0,0.00019324,2]
[423031008,1779780653000,-217.565942,0.00019324,2]
[423031010,1779780653000,-217.565942,0.00019324,2]
[423031006,1779780653000,-151.0,0.00019324,2]
[423031007,1779780653000,-217.565942,0.00019324,2]
[423031009,1779780653000,-217.565942,0.00019324,2]
[423031012,1779780653000,-599.833976,0.00019324,2]
[423031015,1779780653000,-599.833976,0.00019324,2]
[423031016,1779780653000,-151.0,0.00019324,2]
[423031013,1779780653000,-599.833976,0.00019324,2]
[423031005,1779780653000,-151.0,0.00019324,2]
[423031014,1779780653000,-599.833976,0.00019324,2]
[423031018,1779780653000,-500.0,0.00019324,2]
[423031028,1779780653000,-217.565942,0.00019326,2]
[423031056,1779780653000,-656.0,0.0002,2]
[423031019,1779780653000,-151.0,0.00019325,2]
[423031020,1779780653000,-151.0,0.00019325,2]
[423031023,1779780653000,-151.0,0.00019326,2]
[423031027,1779780653000,-217.565942,0.00019326,2]
[423031025,1779780653000,-217.565942,0.00019326,2]
[423031055,1779780653000,-154.0,0.0002,2]
[423031029,1779780653000,-151.0,0.00019326,2]
[423031062,1779780653000,-150.781,0.00020376,2]
[423031087,1779780653000,-766.0,0.00021,2]
[423031082,1779780653000,-1473.0,0.00021,2]
[423031081,1779780653000,-152.0,0.00021,2]
[423031085,1779780653000,-172.80029041,0.00021,2]
[423031090,1779780653000,-656.0,0.00021,2]
[423031100,1779780653000,-473.96,0.000216,2]
[423031099,1779780653000,-1934.38338736,0.00021493,2]
[423031095,1779780653000,-187.78006524,0.00021418,2]
[423031096,1779780653000,-1280.88388877,0.00021418,2]
[423031097,1779780653000,-200.0,0.00021418,2]
[423031094,1779780653000,-150.0,0.00021091,2]
[423031098,1779780653000,-2418.03644379,0.00021492,2]
[423031101,1779780653000,-5988.06031727,0.00021639,2]
[423031089,1779780653000,-154.0,0.00021,2]
[423031091,1779780653000,-5012.35216959,0.00021087,2]
[423031092,1779780653000,-151.0,0.00021087,2]
[423031093,1779780653000,-151.0,0.00021087,2]
[423031103,1779780653000,-6271.14,0.00021757,2]
[423031105,1779780653000,-18086.55,0.00021757,2]
[423031102,1779780653000,-150.99,0.00021757,2]
[423031106,1779780653000,-999.99,0.00021757,2]
[423031104,1779780653000,-5554.6,0.00021757,2]
[423031107,1779780653000,-151.0,0.00021757,2]
[423031108,1779780653000,-298.315024,0.00021757,2]
[423031057,1779780653000,-174.61919141,0.00020322,2]
[423031088,1779780653000,-157.0,0.00021,2]
[423031084,1779780653000,-682.0,0.00021,2]
[423031033,1779780653000,-599.833976,0.00019326,2]
[423031080,1779780653000,-2559.86,0.00020951,2]
[423031083,1779780653000,-230.0,0.00021,2]
[423031052,1779780653000,-235.0,0.0002,2]
[423031054,1779780653000,-157.0,0.0002,2]
[423031059,1779780653000,-200.0,0.00020322,2]
[423031061,1779780653000,-578.20924308,0.00020322,2]
[423031053,1779780653000,-766.0,0.0002,2]
[423031058,1779780653000,-1191.11104074,0.00020322,2]
[423031064,1779780653000,-642.88,0.00020376,2]
[423031075,1779780653000,-1235.18214925,0.0002087,2]
[423031074,1779780653000,-181.08010149,0.0002087,2]
[423031063,1779780653000,-560.331,0.00020376,2]
[423031067,1779780653000,-1798.80895522,0.00020397,2]
[423031060,1779780653000,-601.3376128,0.00020322,2]
[423031070,1779780653000,-600.0,0.00020822,7]
[423031077,1779780653000,-289.21537492,0.00020874,2]
[423031065,1779780653000,-3636.0,0.00020376,2]
[423031086,1779780653000,-235.0,0.00021,2]
[423031079,1779780653000,-4770.81,0.00020951,2]
[423031078,1779780653000,-1865.36488656,0.00020946,2]
[423031073,1779780653000,-489.7392003,0.00020822,2]
[423031076,1779780653000,-200.0,0.0002087,2]
[423031072,1779780653000,-1499.7339445,0.00020822,2]
[423031066,1779780653000,-771.3,0.00020381,2]
[423031068,1779780653000,-500.0,0.0002044,2]
[423031071,1779780653000,-500.0,0.00020822,7]
[423031069,1779780653000,-690.204,0.00020764,2]
[423031150,1779780654000,-766.0,0.00022,2]
[423031155,1779780654000,-231.723452,0.00022,2]
[423031152,1779780654000,-159.0263565,0.00022,2]
[423031151,1779780654000,-157.0,0.00022,2]
[423031149,1779780654000,-151.0,0.00022,2]
[423031143,1779780654000,-281.334959,0.00022,2]
[423031145,1779780654000,-599.833976,0.00022,2]
[423031144,1779780654000,-235.0,0.00022,2]
[423031141,1779780654000,-217.565942,0.00022,2]
[423031138,1779780654000,-151.0,0.00022,2]
[423031154,1779780654000,-20334.48,0.00022,2]
[423031147,1779780654000,-599.833976,0.00022,2]
[423031156,1779780654000,-202.800289,0.00022,2]
[423031170,1779780654000,-771.3,0.00022353,2]
[423031161,1779780654000,-500.0,0.00022016,2]
[423031159,1779780654000,-304.068022,0.00022016,2]
[423031157,1779780654000,-500.0,0.00022016,2]
[423031113,1779780654000,-217.565942,0.00021757,2]
[423031158,1779780654000,-500.0,0.00022016,2]
[423031160,1779780654000,-561.85564643,0.00022016,2]
[423031163,1779780654000,-500.0,0.00022016,2]
[423031173,1779780654000,-150.0,0.00022488,2]
[423031165,1779780654000,-2005.9555727,0.00022041,2]
[423031162,1779780654000,-500.0,0.00022016,2]
[423031142,1779780654000,-217.565942,0.00022,2]
[423031172,1779780654000,-155.31184568,0.00022488,4]
[423031169,1779780654000,-500.0,0.00022288,2]
[423031164,1779780654000,-1433.4255452,0.00022017,2]
[423031153,1779780654000,-656.0,0.00022,2]
[423031146,1779780654000,-599.833976,0.00022,2]
[423031129,1779780654000,-200.0,0.00021966,2]
[423031140,1779780654000,-217.565942,0.00022,2]
[423031167,1779780654000,-2842.85693034,0.00022154,2]
[423031109,1779780654000,-151.0,0.00021757,2]
[423031112,1779780654000,-217.565942,0.00021757,2]
[423031110,1779780654000,-208.886004,0.00021757,2]
[423031115,1779780654000,-151.0,0.00021757,2]
[423031125,1779780654000,-151.988978,0.00021918,2]
[423031116,1779780654000,-599.833976,0.00021757,2]
[423031122,1779780654000,-500.0,0.00021917,2]
[423031114,1779780654000,-217.565942,0.00021757,2]
[423031120,1779780654000,-151.0,0.00021757,2]
[423031117,1779780654000,-599.833976,0.00021757,2]
[423031118,1779780654000,-599.833976,0.00021757,2]
[423031119,1779780654000,-599.833976,0.00021757,2]
[423031137,1779780654000,-151.0,0.00022,2]
[423031124,1779780654000,-151.0,0.00021918,2]
[423031121,1779780654000,-500.0,0.000219,2]
[423031127,1779780654000,-194.72792766,0.00021966,2]
[423031126,1779780654000,-600.0,0.00021918,7]
[423031128,1779780654000,-1328.27659266,0.00021966,2]
[423031130,1779780654000,-500.0,0.00021998,2]
[423031134,1779780654000,-152.0,0.00022,2]
[423031131,1779780654000,-500.0,0.00021999,2]
[423031133,1779780654000,-450.0,0.00022,2]
[423031135,1779780654000,-1473.0,0.00022,2]
[423031132,1779780654000,-5817.0,0.00022,10]
[423031136,1779780654000,-230.0,0.00022,2]
[423031148,1779780654000,-599.833976,0.00022,2]
[423031139,1779780654000,-217.565942,0.00022,2]
[423031123,1779780654000,-5000.0,0.00021918,2]
[423031111,1779780654000,-217.565942,0.00021757,2]
[423031166,1779780654000,-2316.0,0.0002212,2]
[423031171,1779780654000,-1829.01106349,0.00022466,2]
[423031204,1779780654000,-156.36241002,0.00023,2]
[423031210,1779780654000,-157.0,0.00023,2]
[423031206,1779780654000,-230.0,0.00023,2]
[423031205,1779780654000,-1473.0,0.00023,2]
[423031211,1779780654000,-656.0,0.00023,2]
[423031207,1779780654000,-164.0,0.00023,7]
[423031212,1779780654000,-600.0,0.00023014,7]
[423031227,1779780654000,-150.0,0.0002316,4]
[423031216,1779780654000,-861.31,0.00023046,2]
[423031226,1779780654000,-2157.14243826,0.00023137,2]
[423031218,1779780654000,-599.60298507,0.00023061,2]
[423031217,1779780654000,-623.58710447,0.00023061,2]
[423031219,1779780654000,-209.40437684,0.00023062,2]
[423031220,1779780654000,-1428.38747117,0.00023062,2]
[423031215,1779780654000,-150.0,0.00023043,4]
[423031221,1779780654000,-200.0,0.00023062,2]
[423031222,1779780654000,-150.0,0.00023064,4]
[423031225,1779780654000,-150.0,0.00023112,4]
[423031223,1779780654000,-150.0,0.00023064,4]
[423031224,1779780654000,-150.0,0.00023112,4]
[423031229,1779780654000,-246.5002643,0.000232,2]
[423031228,1779780654000,-150.0,0.00023182,4]
[423031233,1779780654000,-150.0,0.00023256,4]
[423031234,1779780654000,-150.0,0.00023305,4]
[423031231,1779780654000,-150.0,0.00023208,4]
[423031232,1779780654000,-150.0,0.00023256,4]
[423031230,1779780654000,-152.0,0.00023203,3]
[423031235,1779780654000,-150.0,0.00023321,4]
[423031168,1779780654000,-308.12,0.00022208,2]
[423031209,1779780654000,-766.0,0.00023,2]
[423031208,1779780654000,-235.0,0.00023,2]
[423031187,1779780654000,-150.0,0.0002268,4]
[423031214,1779780654000,-150.0,0.00023016,4]
[423031174,1779780654000,-150.0,0.00022488,2]
[423031179,1779780654000,-201.93286098,0.00022514,2]
[423031176,1779780654000,-150.0,0.00022488,2]
[423031184,1779780654000,-2080.17592889,0.0002259,2]
[423031175,1779780654000,-150.85511542,0.00022488,2]
[423031177,1779780654000,-150.0,0.00022488,2]
[423031182,1779780654000,-150.0,0.00022536,4]
[423031178,1779780654000,-150.0,0.00022488,2]
[423031181,1779780654000,-200.0,0.00022514,2]
[423031186,1779780654000,-150.0,0.00022632,4]
[423031180,1779780654000,-1377.42282658,0.00022514,2]
[423031185,1779780654000,-150.0,0.00022626,4]
[423031183,1779780654000,-150.0,0.00022584,4]
[423031189,1779780654000,-150.0,0.00022728,4]
[423031213,1779780654000,-500.0,0.00023014,7]
[423031200,1779780654000,-150.0,0.0002292,4]
[423031202,1779780654000,-150.0,0.00022987,4]
[423031203,1779780654000,-2309.0,0.00023,2]
[423031194,1779780654000,-671.0,0.00022872,5]
[423031193,1779780654000,-1589.0,0.00022845,3]
[423031199,1779780654000,-150.0,0.00022904,4]
[423031195,1779780654000,-150.0,0.00022872,4]
[423031197,1779780654000,-542.78,0.00022877,2]
[423031198,1779780654000,-5012.35216959,0.00022878,2]
[423031192,1779780654000,-150.0,0.00022824,4]
[423031190,1779780654000,-150.0,0.00022765,4]
[423031191,1779780654000,-150.0,0.00022776,4]
[423031188,1779780654000,-150.0,0.0002268,4]
[423031201,1779780654000,-150.0,0.00022968,4]
[423031196,1779780654000,-150.0,0.00022872,4]
[423031277,1779780655000,-3600.0,0.00024,2]
[423031269,1779780655000,-150.0,0.00023833,4]
[423031275,1779780655000,-150.0,0.00023987,4]
[423031276,1779780655000,-1038.47693357,0.00024,2]
[423031271,1779780655000,-150.0,0.00023876,4]
[423031266,1779780655000,-473.96,0.00023759,2]
[423031282,1779780655000,-235.0,0.00024,2]
[423031281,1779780655000,-230.0,0.00024,2]
[423031270,1779780655000,-442.0,0.00023876,5]
[423031263,1779780655000,-150.0,0.00023737,4]
[423031272,1779780655000,-150.0,0.00023881,4]
[423031280,1779780655000,-1473.0,0.00024,2]
[423031273,1779780655000,-150.0,0.00023929,4]
[423031291,1779780655000,-5000.0,0.00024118,2]
[423031279,1779780655000,-500.0,0.00024,2]
[423031283,1779780655000,-766.0,0.00024,2]
[423031285,1779780655000,-656.0,0.00024,2]
[423031287,1779780655000,-150.0,0.00024025,4]
[423031286,1779780655000,-150.0,0.00024015,4]
[423031294,1779780655000,-225.18697532,0.00024158,2]
[423031284,1779780655000,-157.0,0.00024,2]
[423031289,1779780655000,-150.0,0.00024073,4]
[423031296,1779780655000,-200.0,0.00024158,2]
[423031288,1779780655000,-150.0,0.00024025,4]
[423031295,1779780655000,-1536.04360648,0.00024158,2]
[423031292,1779780655000,-150.0,0.00024121,4]
[423031267,1779780655000,-150.0,0.00023785,4]
[423031274,1779780655000,-150.0,0.00023977,4]
[423031260,1779780655000,-170.68329288,0.00023674,7]
[423031245,1779780655000,-217.565942,0.00023449,2]
[423031264,1779780655000,-150.0,0.00023737,4]
[423031239,1779780655000,-151.0,0.00023376,2]
[423031240,1779780655000,-150.0,0.00023401,4]
[423031241,1779780655000,-150.0,0.00023449,4]
[423031237,1779780655000,-626.0,0.00023376,2]
[423031238,1779780655000,-3636.0,0.00023376,2]
[423031236,1779780655000,-150.0,0.00023353,4]
[423031243,1779780655000,-151.0,0.00023449,2]
[423031254,1779780655000,-150.0,0.00023598,4]
[423031253,1779780655000,-150.0,0.00023593,4]
[423031249,1779780655000,-2418.03644379,0.00023481,2]
[423031244,1779780655000,-217.565942,0.00023449,2]
[423031250,1779780655000,-150.0,0.00023487,4]
[423031242,1779780655000,-150.0,0.00023449,4]
[423031246,1779780655000,-217.565942,0.00023449,2]
[423031290,1779780655000,-600.0,0.0002411,7]
[423031251,1779780655000,-150.0,0.00023497,4]
[423031247,1779780655000,-217.565952,0.00023449,2]
[423031248,1779780655000,-150.0,0.00023459,4]
[423031252,1779780655000,-150.0,0.00023545,4]
[423031255,1779780655000,-217.15233878,0.0002361,2]
[423031257,1779780655000,-200.0,0.0002361,2]
[423031256,1779780655000,-1481.2378076,0.0002361,2]
[423031258,1779780655000,-150.0,0.00023641,4]
[423031265,1779780655000,-150.0,0.00023737,4]
[423031259,1779780655000,-150.0,0.00023641,4]
[423031268,1779780655000,-150.0,0.00023833,4]
[423031261,1779780655000,-2236.95670847,0.00023685,2]
[423031262,1779780655000,-150.0,0.00023689,4]
[423031293,1779780655000,-150.0,0.00024153,4]
[423031278,1779780655000,-1255.69318828,0.00024,2]
[423031308,1779780655000,-150.0,0.00024362,4]
[423031330,1779780655000,-200.0,0.00024706,2]
[423031327,1779780655000,-4000.0,0.000247,9]
[423031329,1779780655000,-1729.62501529,0.00024706,2]
[423031334,1779780655000,-2405.55389863,0.00024781,2]
[423031340,1779780655000,-150.0,0.00024847,4]
[423031335,1779780655000,-150.0,0.00024794,4]
[423031341,1779780655000,-313.28,0.00024886,7]
[423031337,1779780655000,-8100.0,0.000248,9]
[423031339,1779780655000,-500.0,0.00024847,2]
[423031336,1779780655000,-150.0,0.00024794,4]
[423031343,1779780655000,-1266.8597,0.0002489,2]
[423031338,1779780655000,-150.0,0.00024842,4]
[423031344,1779780655000,-150.0,0.0002489,4]
[423031328,1779780655000,-233.5188934,0.00024706,2]
[423031333,1779780655000,-152.0,0.00024762,4]
[423031345,1779780655000,-380.67771871,0.000249,2]
[423031346,1779780655000,-12100.0,0.000249,9]
[423031348,1779780655000,-500.0,0.00024949,2]
[423031351,1779780655000,-1931.53,0.0002495,2]
[423031350,1779780655000,-4995.0,0.0002495,2]
[423031352,1779780655000,-3863.06,0.0002495,2]
[423031347,1779780655000,-150.0,0.00024938,4]
[423031349,1779780655000,-4995.0,0.0002495,2]
[423031354,1779780655000,-152.48604758,0.00024986,4]
[423031355,1779780655000,-151.42331974,0.00024986,4]
[423031353,1779780655000,-163.0,0.00024975,3]
[423031356,1779780655000,-154.20497588,0.00024986,4]
[423031298,1779780655000,-5832.99,0.00024174,2]
[423031342,1779780655000,-9197.1835,0.0002489,2]
[423031332,1779780655000,-150.0,0.00024746,4]
[423031357,1779780655000,-261.48304881,0.00024986,4]
[423031326,1779780655000,-554.0,0.000247,5]
[423031331,1779780655000,-150.0,0.00024709,4]
[423031299,1779780655000,-1875.54,0.00024174,2]
[423031302,1779780655000,-150.0,0.00024217,4]
[423031300,1779780655000,-3757.82442006,0.0002421,2]
[423031306,1779780655000,-150.0,0.00024314,4]
[423031301,1779780655000,-150.0,0.00024217,4]
[423031307,1779780655000,-771.3,0.00024324,2]
[423031305,1779780655000,-150.0,0.00024292,4]
[423031304,1779780655000,-150.0,0.00024266,4]
[423031303,1779780655000,-2319.72410669,0.00024234,2]
[423031309,1779780655000,-150.0,0.00024362,4]
[423031311,1779780655000,-150.0,0.0002441,4]
[423031319,1779780655000,-150.0,0.00024602,4]
[423031297,1779780655000,-150.0,0.00024169,4]
[423031315,1779780655000,-150.0,0.00024506,4]
[423031312,1779780655000,-150.0,0.00024431,4]
[423031314,1779780655000,-150.0,0.00024487,4]
[423031316,1779780655000,-150.0,0.00024554,4]
[423031313,1779780655000,-150.0,0.00024458,4]
[423031318,1779780655000,-150.0,0.00024602,4]
[423031320,1779780655000,-150.0,0.0002465,4]
[423031317,1779780655000,-150.0,0.0002457,4]
[423031321,1779780655000,-1000.0,0.00024658,2]
[423031310,1779780655000,-150.0,0.0002441,4]
[423031323,1779780655000,-313.28,0.00024658,2]
[423031322,1779780655000,-976.9,0.00024658,2]
[423031325,1779780655000,-150.0,0.00024698,4]
[423031324,1779780655000,-5012.35216959,0.00024669,2]
[423031396,1779780656000,-777.0,0.00025,2]
[423031415,1779780656000,-609.0,0.000255,2]
[423031398,1779780656000,-200.0,0.00025,2]
[423031397,1779780656000,-164.0,0.00025,2]
[423031391,1779780656000,-1179680.52418108,0.00025,2]
[423031389,1779780656000,-461.09118533,0.00024999,2]
[423031401,1779780656000,-269.84,0.00025,2]
[423031394,1779780656000,-235.40908794,0.00025,2]
[423031392,1779780656000,-56288.56973458,0.00025,7]
[423031390,1779780656000,-176.03,0.00025,3]
[423031393,1779780656000,-1473.0,0.00025,2]
[423031400,1779780656000,-663.0,0.00025,2]
[423031395,1779780656000,-245.0,0.00025,2]
[423031407,1779780656000,-500.0,0.00025206,7]
[423031403,1779780656000,-2842.85693034,0.00025011,2]
[423031413,1779780656000,-269.88913365,0.00025397,2]
[423031402,1779780656000,-269.84,0.00025,2]
[423031405,1779780656000,-313.28,0.00025115,30]
[423031404,1779780656000,-525.0,0.00025082,2]
[423031412,1779780656000,-448.70321672,0.00025397,2]
[423031406,1779780656000,-600.0,0.00025206,7]
[423031410,1779780656000,-2494.55939288,0.00025329,2]
[423031408,1779780656000,-242.15909246,0.00025254,2]
[423031409,1779780656000,-200.0,0.00025254,2]
[423031411,1779780656000,-313.28,0.00025343,2]
[423031416,1779780656000,-163.0,0.00025558,3]
[423031383,1779780656000,-500.0,0.00024999,2]
[423031399,1779780656000,-150.0,0.00025,2]
[423031382,1779780656000,-500.0,0.00024999,2]
[423031372,1779780656000,-500.0,0.00024999,2]
[423031381,1779780656000,-500.0,0.00024999,2]
[423031417,1779780656000,-313.28,0.00025572,7]
[423031363,1779780656000,-500.0,0.00024999,2]
[423031358,1779780656000,-153.23618636,0.00024986,4]
[423031359,1779780656000,-304.01627743,0.0002499,2]
[423031361,1779780656000,-500.0,0.00024998,2]
[423031360,1779780656000,-500.0,0.00024998,2]
[423031362,1779780656000,-500.0,0.00024999,2]
[423031365,1779780656000,-500.0,0.00024999,2]
[423031366,1779780656000,-500.0,0.00024999,2]
[423031364,1779780656000,-500.0,0.00024999,2]
[423031367,1779780656000,-500.0,0.00024999,2]
[423031374,1779780656000,-500.0,0.00024999,2]
[423031375,1779780656000,-500.0,0.00024999,2]
[423031369,1779780656000,-500.0,0.00024999,2]
[423031376,1779780656000,-500.0,0.00024999,2]
[423031368,1779780656000,-500.0,0.00024999,2]
[423031371,1779780656000,-500.0,0.00024999,2]
[423031370,1779780656000,-500.0,0.00024999,2]
[423031373,1779780656000,-500.0,0.00024999,2]
[423031386,1779780656000,-500.0,0.00024999,2]
[423031387,1779780656000,-500.0,0.00024999,2]
[423031388,1779780656000,-500.0,0.00024999,2]
[423031379,1779780656000,-500.0,0.00024999,2]
[423031377,1779780656000,-500.0,0.00024999,2]
[423031380,1779780656000,-500.0,0.00024999,2]
[423031378,1779780656000,-500.0,0.00024999,2]
[423031384,1779780656000,-500.0,0.00024999,2]
[423031385,1779780656000,-575.45588428,0.00024999,2]
[423031414,1779780656000,-2418.03644379,0.0002547,2]
[423031458,1779780656000,-5135.67,0.000264,2]
[423031424,1779780656000,-251.11897888,0.00025802,2]
[423031461,1779780656000,-2682.57183977,0.00026425,2]
[423031455,1779780656000,-297.89113696,0.00026397,2]
[423031453,1779780656000,-448.70321672,0.00026397,2]
[423031454,1779780656000,-269.88913365,0.00026397,2]
[423031457,1779780656000,-355.73,0.000264,2]
[423031459,1779780656000,-879.23,0.000264,2]
[423031462,1779780656000,-5012.35216959,0.0002646,2]
[423031456,1779780656000,-296.5089564,0.00026397,2]
[423031451,1779780656000,-328.71531952,0.00026397,2]
[423031452,1779780656000,-336.9073673,0.00026397,2]
[423031464,1779780656000,-937.97782678,0.0002649,60]
[423031463,1779780656000,-313.28,0.00026486,30]
[423031466,1779780656000,-224.0,0.00026512,2]
[423031467,1779780656000,-250.0,0.00026539,2]
[423031471,1779780656000,-250.0,0.00026539,2]
[423031468,1779780656000,-250.0,0.00026539,2]
[423031470,1779780656000,-250.0,0.00026539,2]
[423031473,1779780656000,-250.0,0.00026539,2]
[423031469,1779780656000,-250.0,0.00026539,2]
[423031472,1779780656000,-250.0,0.00026539,2]
[423031474,1779780656000,-367.0,0.00026539,2]
[423031475,1779780656000,-937.97782678,0.00026562,60]
[423031477,1779780656000,-879.23,0.000266,2]
[423031479,1779780656000,-150.0,0.00026632,2]
[423031478,1779780656000,-291.0,0.00026632,2]
[423031476,1779780656000,-393.0,0.00026567,2]
[423031422,1779780656000,-646.65982734,0.000258,2]
[423031460,1779780656000,-937.97782678,0.00026418,60]
[423031450,1779780656000,-3636.0,0.00026376,2]
[423031465,1779780656000,-431.0,0.00026512,2]
[423031444,1779780656000,-937.97782678,0.00026273,30]
[423031421,1779780656000,-313.28,0.000258,30]
[423031449,1779780656000,-200.0,0.0002635,2]
[423031420,1779780656000,-356854.63660815,0.00025667,2]
[423031418,1779780656000,-1000.0,0.000256,2]
[423031423,1779780656000,-621.78829552,0.000258,2]
[423031419,1779780656000,-525.0,0.00025637,2]
[423031426,1779780656000,-2586.85809042,0.00025878,2]
[423031436,1779780656000,-300.0,0.00026122,2]
[423031427,1779780656000,-473.96,0.00025919,2]
[423031425,1779780656000,-200.0,0.00025802,2]
[423031434,1779780656000,-300.0,0.00026122,2]
[423031432,1779780656000,-446.0,0.000261,2]
[423031428,1779780656000,-550.0,0.00026,2]
[423031430,1779780656000,-1994.5203,0.00026027,2]
[423031431,1779780656000,-313.28,0.00026029,2]
[423031429,1779780656000,-2002.6739,0.00026027,2]
[423031445,1779780656000,-771.3,0.00026296,2]
[423031443,1779780656000,-313.28,0.00026257,7]
[423031435,1779780656000,-300.0,0.00026122,2]
[423031439,1779780656000,-169.0,0.00026196,2]
[423031440,1779780656000,-2316.0,0.00026198,3]
[423031448,1779780656000,-260.4103811,0.0002635,2]
[423031446,1779780656000,-152.0,0.00026321,5]
[423031447,1779780656000,-937.97782678,0.00026346,30]
[423031442,1779780656000,-937.97782678,0.00026201,30]
[423031441,1779780656000,-677.35013657,0.000262,2]
[423031437,1779780656000,-211.0,0.00026122,2]
[423031433,1779780656000,-372.0,0.00026122,2]
[423031438,1779780656000,-525.0,0.00026192,3]
[423031517,1779780657000,-5135.77,0.00027,2]
[423031521,1779780657000,-4813.22984505,0.00027,2]
[423031527,1779780657000,-5135.67,0.000271,2]
[423031522,1779780657000,-1407.95932721,0.00027,2]
[423031526,1779780657000,-2582.146345,0.0002701,2]
[423031520,1779780657000,-879.23,0.00027,2]
[423031505,1779780657000,-2000.0,0.00026988,2]
[423031519,1779780657000,-5135.67,0.00027,2]
[423031516,1779780657000,-530.0,0.00027,2]
[423031508,1779780657000,-1000.0,0.00026988,2]
[423031529,1779780657000,-1431.94732776,0.00027123,2]
[423031503,1779780657000,-313.28,0.00026943,7]
[423031518,1779780657000,-879.23,0.00027,2]
[423031523,1779780657000,-219.40637802,0.00027,2]
[423031539,1779780657000,-163.4,0.00027301,2]
[423031524,1779780657000,-2000.0,0.00027,2]
[423031532,1779780657000,-163.4,0.00027297,2]
[423031530,1779780657000,-313.28,0.00027171,30]
[423031531,1779780657000,-1000.0,0.00027236,2]
[423031541,1779780657000,-380.67771865,0.0002731,2]
[423031533,1779780657000,-163.4,0.00027297,2]
[423031537,1779780657000,-178.0,0.000273,30]
[423031535,1779780657000,-163.4,0.00027299,2]
[423031538,1779780657000,-163.37,0.00027301,2]
[423031534,1779780657000,-163.4,0.00027299,2]
[423031542,1779780657000,-184.87641711,0.0002739,2]
[423031536,1779780657000,-879.23,0.000273,2]
[423031509,1779780657000,-1000.0,0.00026988,2]
[423031540,1779780657000,-525.0,0.00027301,4]
[423031528,1779780657000,-879.23,0.000271,2]
[423031507,1779780657000,-1000.0,0.00026988,2]
[423031486,1779780657000,-318.0,0.00026707,60]
[423031504,1779780657000,-2781.82699784,0.00026973,2]
[423031543,1779780657000,-150.0,0.00027396,2]
[423031485,1779780657000,-404.0,0.00026707,60]
[423031487,1779780657000,-211.0,0.00026707,60]
[423031488,1779780657000,-313.28,0.00026714,2]
[423031481,1779780657000,-937.97782678,0.00026635,60]
[423031480,1779780657000,-266.0,0.00026632,2]
[423031482,1779780657000,-937.97782678,0.00026707,60]
[423031483,1779780657000,-1233.0,0.00026707,60]
[423031484,1779780657000,-450.0,0.00026707,60]
[423031489,1779780657000,-226.0,0.00026744,2]
[423031492,1779780657000,-937.97782678,0.00026779,60]
[423031490,1779780657000,-153.0,0.00026744,2]
[423031491,1779780657000,-525.0,0.00026746,3]
[423031501,1779780657000,-6015.0,0.000269,2]
[423031500,1779780657000,-204.38340569,0.00026898,2]
[423031496,1779780657000,-1049.0,0.00026838,3]